[Event "FIDE Chesscom Grand Swiss 2019"]
[Site "Douglas-Isle of Man"]
[Date "2019.10.12"]
[Round "3.19"]
[White "Riazantsev, Alexander"]
[Black "Atalik, Ekaterina"]
[Result "1-0"]
[ECO "D30"]
[WhiteElo "2645"]
[BlackElo "2464"]
[Annotator "RC"]
[PlyCount "73"]
[EventDate "2019.10.10"]
[EventType "swiss"]
[EventCountry "GBR"]
[SourceTitle "playchess.com"]
[Source "ChessBase"]
[SourceQuality "1"]
[TimeControl "40/6000+30:20/3000+30:900+30"]

1. d4 {[%emt 0:00:00]} Nf6 {[%emt 0:00:01]} 2. c4 {[%emt 0:00:00]} e6 {[%emt 0:00:15]} 3. Nf3 {[%emt 0:00:00]} d5 {[%emt 0:00:29]} 4. Qc2 {[%emt 0:00:08]} dxc4 {[%emt 0:04:54]} 5. e3 {[%emt 0:02:18]} a6 {[%emt 0:02:30]} 6. Bxc4 {[%emt 0:01:42]} b5 {[%emt 0:01:19]} 7. Be2 {[%emt 0:03:33]} Bb7 {[%emt 0:02:55]} 8. a4 {[%emt 0:00:10]} b4 {[%emt 0:00:31]} 9. O-O {[%emt 0:01:08]} Nbd7 {[%emt 0:00:34]} 10. Nbd2 {[%emt 0:00:33]} c5 {[%emt 0:02:43]} 11. b3 {[%emt 0:03:31]} Rc8 {[%emt 0:08:08]} 12. Nc4 {[%emt 0:02:34]} Be7 {[%emt 0:01:51]} 13. Bb2 {[%emt 0:00:42]} O-O {[%emt 0:01:08]} 14. Rfd1 {[%emt 0:00:55]} Qc7 {[%emt 0:05:06]} 15. Rac1 {[%emt 0:03:34]} Rfd8 {[%emt 0:05:17]} 16. Qb1 {[%emt 0:20:10]} Be4 {[%emt 0:22:58]} 17. Qa1 {[%emt 0:00:46]} Qb7 {[%emt 0:04:02]} 18. Ne1 {[%emt 0:07:47]} Bd5 {[%emt 0:04:54]} 19. f3 {[%emt 0:13:00]} Qa7 {[%emt 0:00:52]} 20. e4 {[%emt 0:03:16]} Bxc4 {[%emt 0:00:58]} 21. Rxc4 {[%emt 0:00:42]} a5 {[%emt 0:06:08]} 22. Kh1 {[%emt 0:04:35]} Qb8 {[%emt 0:02:08]} 23. Rdc1 {[%emt 0:12:15]} cxd4 {[%emt 0:00:56]} 24. Bxd4 {[%emt 0:00:12]} Rxc4 {[%emt 0:00:33]} 25. Rxc4 {[%emt 0:00:09]} Bd6 {[%emt 0:01:22]} 26. Nd3 {[%emt 0:00:43]} Ne8 {[%emt 0:05:25]} 27. g3 {[%emt 0:03:38]} Bc7 {[%emt 0:02:33]} 28. Kg2 {[%emt 0:04:40]} h5 {[%emt 0:00:44]} 29. Qc1 {[%emt 0:15:30]} Nb6 {[%emt 0:02:45]} 30. Rxc7 {[%emt 0:00:04]} Rxd4 {[%emt 0:01:23]} 31. Rc5 {[%emt 0:01:02]} Qd8 {[%emt 0:04:27]} 32. Qe3 {[%emt 0:01:07]} h4 {[%emt 0:00:45]} 33. Rxa5 {[%emt 0:00:25]} hxg3 {[%emt 0:02:13]} 34. hxg3 {[%emt 0:00:55]} Nc4 35. bxc4 {[%emt 0:00:39]} Rxd3 {[%emt 0:00:31]} 36. Qxd3 {[%emt 0:01:52]} Qxa5 {[%emt 0:00:06]} 37. Bd1 {[%emt 0:02:21]} 1-0

[Event "FIDE Chesscom Grand Swiss 2019"]
[Site "Douglas-Isle of Man"]
[Date "2019.10.12"]
[Round "3.20"]
[White "Zvjaginsev, Vadim"]
[Black "Sebag, Marie"]
[Result "1/2-1/2"]
[ECO "A07"]
[WhiteElo "2644"]
[BlackElo "2445"]
[Annotator "RC"]
[PlyCount "93"]
[EventDate "2019.10.10"]
[EventType "swiss"]
[EventCountry "GBR"]
[SourceTitle "playchess.com"]
[Source "ChessBase"]
[SourceQuality "1"]
[TimeControl "40/6000+30:20/3000+30:900+30"]

1. Nf3 {[%emt 0:00:00]} d5 {[%emt 0:00:00]} 2. g3 {[%emt 0:00:03]} g6 {[%emt 0:01:04]} 3. Bg2 {[%emt 0:01:45]} Bg7 {[%emt 0:04:57]} 4. O-O {[%emt 0:00:30]} e5 {[%emt 0:01:05]} 5. d3 {[%emt 0:00:28]} Ne7 {[%emt 0:00:59]} 6. c4 {[%emt 0:03:22]} c6 {[%emt 0:02:26]} 7. Nc3 {[%emt 0:03:50]} O-O {[%emt 0:04:17]} 8. Bd2 {[%emt 0:06:15]} h6 {[%emt 0:03:24]} 9. Qb3 {[%emt 0:10:35]} Na6 {[%emt 0:10:17]} 10. cxd5 {[%emt 0:02:07]} cxd5 {[%emt 0:02:41]} 11. Rac1 {[%emt 0:03:00]} Nc5 {[%emt 0:25:06]} 12. Qa3 {[%emt 0:00:33]} b6 {[%emt 0:01:30]} 13. Rfd1 {[%emt 0:06:43]} Bb7 {[%emt 0:05:47]} 14. Be1 {[%emt 0:09:26]} d4 {[%emt 0:09:30]} 15. Ne4 {[%emt 0:01:43]} Nxe4 {[%emt 0:02:56]} 16. dxe4 {[%emt 0:00:11]} Re8 {[%emt 0:04:38]} 17. b4 {[%emt 0:04:10]} Nc8 {[%emt 0:05:40]} 18. Nd2 {[%emt 0:06:04]} Nd6 {[%emt 0:00:25]} 19. Nc4 {[%emt 0:02:47]} Nxe4 {[%emt 0:04:59]} 20. Qd3 {[%emt 0:00:45]} f5 {[%emt 0:00:27]} 21. Nd2 {[%emt 0:01:24]} Nd6 {[%emt 0:01:08]} 22. Bxb7 {[%emt 0:02:48]} Nxb7 {[%emt 0:00:04]} 23. Rc6 {[%emt 0:00:29]} Kh7 {[%emt 0:04:41]} 24. Rdc1 {[%emt 0:00:54]} Nd6 {[%emt 0:01:01]} 25. e4 {[%emt 0:02:21]} f4 {[%emt 0:04:53]} 26. Nf3 {[%emt 0:07:32]} Rc8 {[%emt 0:00:38]} 27. b5 {[%emt 0:05:02]} Rxc6 {[%emt 0:03:38]} 28. bxc6 {[%emt 0:00:32]} fxg3 {[%emt 0:01:40]} 29. hxg3 {[%emt 0:00:56]} Re7 {[%emt 0:00:20]} 30. Kg2 {[%emt 0:04:07]} Rc7 {[%emt 0:00:29]} 31. Bb4 {[%emt 0:01:24]} Qf6 {[%emt 0:00:49]} 32. Bxd6 {[%emt 0:06:59]} Qxd6 {[%emt 0:00:06]} 33. Qc4 {[%emt 0:03:01]} Qf6 {[%emt 0:00:35]} 34. Qd5 {[%emt 0:01:41]} h5 {[%emt 0:02:13]} 35. a4 {[%emt 0:02:36]} g5 {[%emt 0:01:18]} 36. Ne1 {[%emt 0:04:41]} g4 {[%emt 0:00:33]} 37. Kg1 {[%emt 0:02:08]} Bf8 {[%emt 0:01:06]} 38. Nd3 {[%emt 0:01:36]} Bd6 {[%emt 0:00:12]} 39. a5 {[%emt 0:01:07]} Rg7 {[%emt 0:00:53]} 40. axb6 {[%emt 0:03:20]} axb6 {[%emt 0:00:03]} 41. c7 {[%emt 0:14:06]} Rxc7 {[%emt 0:03:48]} 42. Rxc7+ {[%emt 0:00:57]} Bxc7 {[%emt 0:00:03]} 43. Qd7+ {[%emt 0:00:37]} Qg7 {[%emt 0:00:04]} 44. Qe6 {[%emt 0:04:54]} Qg6 {[%emt 0:02:10]} 45. Qd7+ {[%emt 0:00:46]} Qg7 {[%emt 0:00:03]} 46. Qe6 {[%emt 0:00:23]} Qg6 {[%emt 0:00:11]} 47. Qd7+ {[%emt 0:00:27]} 1/2-1/2

[Event "FIDE Chesscom Grand Swiss 2019"]
[Site "Douglas-Isle of Man"]
[Date "2019.10.12"]
[Round "3.21"]
[White "Fedoseev, Vladimir"]
[Black "Abdusattorov, Nodirbek"]
[Result "1-0"]
[ECO "D37"]
[WhiteElo "2664"]
[BlackElo "2608"]
[Annotator "RC"]
[PlyCount "129"]
[EventDate "2019.10.10"]
[EventType "swiss"]
[EventCountry "GBR"]
[SourceTitle "playchess.com"]
[Source "ChessBase"]
[SourceQuality "1"]
[TimeControl "40/6000+30:20/3000+30:900+30"]

1. d4 {[%emt 0:00:03]} Nf6 {[%emt 0:00:00]} 2. c4 {[%emt 0:00:11]} e6 {[%emt 0:00:08]} 3. Nf3 {[%emt 0:00:10]} d5 {[%emt 0:00:20]} 4. Nc3 {[%emt 0:03:57]} Be7 {[%emt 0:00:12]} 5. Bf4 {[%emt 0:00:31]} O-O {[%emt 0:00:15]} 6. e3 {[%emt 0:00:20]} Nbd7 {[%emt 0:00:23]} 7. cxd5 {[%emt 0:05:45]} Nxd5 {[%emt 0:01:59]} 8. Nxd5 {[%emt 0:02:02]} exd5 {[%emt 0:00:06]} 9. Bd3 {[%emt 0:00:09]} c5 {[%emt 0:08:48]} 10. dxc5 {[%emt 0:10:19]} Nxc5 {[%emt 0:00:10]} 11. O-O {[%emt 0:00:41]} Nxd3 {[%emt 0:11:10]} 12. Qxd3 {[%emt 0:00:08]} Bg4 {[%emt 0:03:23]} 13. Rac1 {[%emt 0:10:11]} Bxf3 {[%emt 0:01:02]} 14. gxf3 {[%emt 0:00:17]} Bf6 {[%emt 0:12:16]} 15. Rc7 {[%emt 0:09:07]} d4 {[%emt 0:00:57]} 16. e4 {[%emt 0:12:21]} b6 {[%emt 0:02:52]} 17. Rd1 {[%emt 0:10:05]} Re8 {[%emt 0:16:05]} 18. Qc4 {[%emt 0:07:42]} Re7 {[%emt 0:02:39]} 19. Rxe7 {[%emt 0:02:09]} Qxe7 {[%emt 0:00:10]} 20. e5 {[%emt 0:01:07]} Bg5 {[%emt 0:00:50]} 21. Rxd4 {[%emt 0:09:41]} Bxf4 {[%emt 0:01:12]} 22. Rxf4 {[%emt 0:00:05]} Rf8 {[%emt 0:04:38]} 23. Re4 {[%emt 0:03:41]} Qg5+ {[%emt 0:00:40]} 24. Kf1 {[%emt 0:00:44]} Qf5 {[%emt 0:03:53]} 25. Qd3 {[%emt 0:03:47]} g6 {[%emt 0:01:42]} 26. f4 {[%emt 0:03:48]} Rc8 {[%emt 0:01:54]} 27. h3 {[%emt 0:02:27]} Rc1+ {[%emt 0:05:49]} 28. Kg2 {[%emt 0:00:39]} Qc8 {[%emt 0:00:12]} 29. Rd4 {[%emt 0:04:07]} Qc6+ {[%emt 0:00:49]} 30. Qe4 {[%emt 0:00:07]} Qxe4+ {[%emt 0:00:20]} 31. Rxe4 {[%emt 0:00:06]} Rc2 {[%emt 0:00:14]} 32. Rb4 {[%emt 0:01:28]} f6 {[%emt 0:01:53]} 33. a4 {[%emt 0:03:35]} Kf7 {[%emt 0:01:21]} 34. Kg3 {[%emt 0:00:38]} Ke6 {[%emt 0:00:56]} 35. Rb5 {[%emt 0:00:22]} fxe5 {[%emt 0:01:24]} 36. Rxe5+ {[%emt 0:01:11]} Kf6 {[%emt 0:00:22]} 37. b4 {[%emt 0:00:30]} Rc3+ {[%emt 0:01:03]} 38. f3 {[%emt 0:00:30]} Ra3 {[%emt 0:01:27]} 39. a5 {[%emt 0:00:09]} bxa5 {[%emt 0:00:14]} 40. bxa5 {[%emt 0:00:28]} Ra1 {[%emt 0:00:40]} 41. Rc5 {[%emt 0:50:12]} Rg1+ {[%emt 0:51:24]} 42. Kf2 {[%emt 0:01:48]} Ra1 {[%emt 0:00:25]} 43. h4 {[%emt 0:00:17]} h6 {[%emt 0:09:29]} 44. Kg2 {[%emt 0:00:00]} Ra2+ {[%emt 0:00:00]} 45. Kg3 {[%emt 0:00:00]} Ra1 {[%emt 0:00:00]} 46. h5 {[%emt 0:00:00]} gxh5 {[%emt 0:00:00]} 47. Rxh5 {[%emt 0:00:00]} Kg6 {[%emt 0:00:00]} 48. Rc5 {[%emt 0:00:00]} Rg1+ {[%emt 0:00:00]} 49. Kf2 {[%emt 0:00:00]} Ra1 {[%emt 0:00:00]} 50. Rc6+ {[%emt 0:00:00]} Kf5 {[%emt 0:00:00]} 51. Rxh6 {[%emt 0:00:00]} Kxf4 {[%emt 0:00:00]} 52. Rf6+ {[%emt 0:00:00]} Ke5 {[%emt 0:00:00]} 53. Ra6 {[%emt 0:00:00]} Kf4 {[%emt 0:00:00]} 54. Ke2 {[%emt 0:02:57]} Ra2+ {[%emt 0:00:00]} 55. Kd3 {[%emt 0:02:13]} Kxf3 {[%emt 0:00:00]} 56. Rxa7 {[%emt 0:00:00]} Kf4 {[%emt 0:04:17]} 57. Kd4 {[%emt 0:00:00]} Kf5 {[%emt 0:00:00]} 58. Ra6 {[%emt 0:00:00]} Rd2+ {[%emt 0:00:00]} 59. Kc5 {[%emt 0:00:00]} Ra2 {[%emt 0:00:00]} 60. Kd5 {[%emt 0:00:00]} Rd2+ {[%emt 0:00:00]} 61. Kc6 {[%emt 0:14:19]} Ke6 {[%emt 0:05:45]} 62. Kc7+ {[%emt 0:05:15]} Ke7 {[%emt 0:05:34]} 63. Rc6 {[%emt 0:00:00]} Rd7+ {[%emt 0:01:01]} 64. Kb8 {[%emt 0:00:00]} Rd8+ {[%emt 0:02:51]} 65. Kb7 {[%emt 0:00:00]} 1-0

[Event "FIDE Chesscom Grand Swiss 2019"]
[Site "Douglas-Isle of Man"]
[Date "2019.10.12"]
[Round "3.21"]
[White "Danielian, Elina"]
[Black "Hovhannisyan, Robert"]
[Result "0-1"]
[ECO "D47"]
[WhiteElo "2385"]
[BlackElo "2639"]
[Annotator "RC"]
[PlyCount "56"]
[EventDate "2019.10.10"]
[EventType "swiss"]
[EventCountry "GBR"]
[SourceTitle "playchess.com"]
[Source "ChessBase"]
[SourceQuality "1"]
[TimeControl "40/6000+30:20/3000+30:900+30"]

1. d4 {[%emt 0:00:00]} d5 {[%emt 0:00:00]} 2. c4 {[%emt 0:00:00]} e6 {[%emt 0:00:00]} 3. Nc3 {[%emt 0:01:22]} Nf6 {[%emt 0:00:00]} 4. Nf3 {[%emt 0:00:25]} c6 {[%emt 0:00:13]} 5. e3 {[%emt 0:00:08]} Nbd7 {[%emt 0:00:12]} 6. Bd3 {[%emt 0:00:35]} dxc4 {[%emt 0:00:25]} 7. Bxc4 {[%emt 0:00:13]} b5 {[%emt 0:00:04]} 8. Bd3 {[%emt 0:00:06]} Bd6 {[%emt 0:00:34]} 9. Bd2 {[%emt 0:02:08]} Bb7 {[%emt 0:02:46]} 10. Rc1 {[%emt 0:00:40]} O-O {[%emt 0:05:05]} 11. O-O {[%emt 0:00:47]} Rc8 {[%emt 0:02:47]} 12. Ne2 {[%emt 0:02:13]} c5 {[%emt 0:16:51]} 13. Bxb5 {[%emt 0:06:42]} cxd4 {[%emt 0:11:52]} 14. Rxc8 {[%emt 0:10:40]} Qxc8 {[%emt 0:00:24]} 15. Nexd4 {[%emt 0:01:50]} Ne5 {[%emt 0:03:38]} 16. Be2 {[%emt 0:10:35]} Ne4 {[%emt 0:17:04]} 17. Nxe5 {[%emt 0:13:46]} Bxe5 {[%emt 0:00:06]} 18. Ba5 {[%emt 0:02:02]} Bd5 {[%emt 0:07:30]} 19. Qa4 {[%emt 0:15:24]} Qb8 {[%emt 0:03:06]} 20. f4 {[%emt 0:25:48]} Bf6 {[%emt 0:00:20]} 21. Qb4 {[%emt 0:08:27]} Bxa2 {[%emt 0:05:19]} 22. Nc6 {[%emt 0:02:18]} Qa8 {[%emt 0:02:29]} 23. Ne7+ {[%emt 0:03:37]} Bxe7 {[%emt 0:01:38]} 24. Qxe7 {[%emt 0:00:02]} Bd5 {[%emt 0:01:19]} 25. Qb4 {[%emt 0:02:06]} Qc6 {[%emt 0:06:53]} 26. Qd4 {[%emt 0:00:20]} Nd6 {[%emt 0:01:21]} 27. Bc3 {[%emt 0:00:26]} Nf5 {[%emt 0:01:09]} 28. Qxa7 {[%emt 0:00:07]} Ra8 {[%emt 0:00:43]} 0-1

[Event "FIDE Chesscom Grand Swiss 2019"]
[Site "Douglas-Isle of Man"]
[Date "2019.10.12"]
[Round "3.22"]
[White "Soumya, Swaminathan"]
[Black "Kuzubov, Yuriy"]
[Result "0-1"]
[ECO "C42"]
[WhiteElo "2365"]
[BlackElo "2636"]
[Annotator "RC"]
[PlyCount "90"]
[EventDate "2019.10.10"]
[EventType "swiss"]
[EventCountry "GBR"]
[SourceTitle "playchess.com"]
[Source "ChessBase"]
[SourceQuality "1"]
[TimeControl "40/6000+30:20/3000+30:900+30"]

1. e4 {[%emt 0:00:00]} e5 {[%emt 0:00:00]} 2. Nf3 {[%emt 0:00:00]} Nf6 {[%emt 0:00:00]} 3. Nxe5 {[%emt 0:00:22]} d6 {[%emt 0:00:00]} 4. Nf3 {[%emt 0:00:10]} Nxe4 {[%emt 0:00:00]} 5. c4 {[%emt 0:02:11]} g6 {[%emt 0:00:05]} 6. d4 {[%emt 0:07:58]} Bg7 {[%emt 0:00:59]} 7. Bd3 {[%emt 0:00:23]} Nf6 {[%emt 0:00:15]} 8. O-O {[%emt 0:04:56]} O-O {[%emt 0:00:06]} 9. d5 {[%emt 0:02:48]} c6 {[%emt 0:05:31]} 10. Nc3 {[%emt 0:07:10]} cxd5 {[%emt 0:00:12]} 11. cxd5 {[%emt 0:00:25]} Bg4 {[%emt 0:01:18]} 12. h3 {[%emt 0:06:05]} Bxf3 {[%emt 0:00:15]} 13. Qxf3 {[%emt 0:00:03]} Nbd7 {[%emt 0:00:14]} 14. Qd1 {[%emt 0:06:22]} Re8 {[%emt 0:00:47]} 15. Bg5 {[%emt 0:10:03]} h6 {[%emt 0:00:11]} 16. Bh4 {[%emt 0:02:33]} Qb6 {[%emt 0:02:12]} 17. Rb1 {[%emt 0:05:21]} Nc5 {[%emt 0:02:28]} 18. Bb5 {[%emt 0:06:57]} Re7 {[%emt 0:03:40]} 19. Qf3 {[%emt 0:10:13]} g5 {[%emt 0:01:02]} 20. Bg3 {[%emt 0:00:12]} a6 {[%emt 0:18:47]} 21. Bd3 {[%emt 0:13:39]} Rae8 {[%emt 0:00:50]} 22. Bc2 {[%emt 0:04:00]} Nce4 {[%emt 0:05:06]} 23. Rfd1 {[%emt 0:00:54]} Nxg3 {[%emt 0:03:29]} 24. Qxg3 {[%emt 0:00:11]} Re5 {[%emt 0:01:56]} 25. Qf3 {[%emt 0:05:01]} Qb4 {[%emt 0:12:03]} 26. g3 {[%emt 0:02:04]} h5 {[%emt 0:01:57]} 27. Kg2 {[%emt 0:00:40]} b5 {[%emt 0:01:12]} 28. a4 {[%emt 0:02:16]} Kf8 {[%emt 0:10:05]} 29. axb5 {[%emt 0:01:47]} axb5 {[%emt 0:00:05]} 30. Qd3 {[%emt 0:01:18]} Rc8 {[%emt 0:01:17]} 31. Qf1 {[%emt 0:03:59]} g4 {[%emt 0:02:33]} 32. hxg4 {[%emt 0:00:13]} Nxg4 {[%emt 0:01:29]} 33. Rd2 {[%emt 0:04:36]} Rc4 {[%emt 0:12:29]} 34. Bd3 {[%emt 0:00:59]} Rd4 {[%emt 0:02:19]} 35. Rbd1 {[%emt 0:00:07]} h4 {[%emt 0:01:31]} 36. Bxb5 {[%emt 0:00:34]} Rxd2 {[%emt 0:10:54]} 37. Rxd2 {[%emt 0:00:01]} Rf5 {[%emt 0:00:37]} 38. Qb1 {[%emt 0:01:29]} h3+ {[%emt 0:01:28]} 39. Kg1 {[%emt 0:00:57]} Bxc3 {[%emt 0:01:12]} 40. Qxf5 {[%emt 0:00:26]} Bxd2 {[%emt 0:00:08]} 41. Be2 {[%emt 0:01:54]} h2+ {[%emt 0:00:22]} 42. Kg2 {[%emt 0:01:55]} h1=Q+ {[%emt 0:00:10]} 43. Kxh1 {[%emt 0:00:03]} Qe4+ {[%emt 0:00:13]} 44. Qxe4 {[%emt 0:00:06]} Nxf2+ {[%emt 0:00:04]} 45. Kg2 {[%emt 0:00:07]} Nxe4 {[%emt 0:00:04]} 0-1

[Event "FIDE Chesscom Grand Swiss 2019"]
[Site "Douglas-Isle of Man"]
[Date "2019.10.12"]
[Round "3.23"]
[White "Dahl, Baard"]
[Black "Mareco, Sandro"]
[Result "0-1"]
[ECO "B42"]
[WhiteElo "2067"]
[BlackElo "2634"]
[Annotator "RC"]
[PlyCount "100"]
[EventDate "2019.10.10"]
[EventType "swiss"]
[EventCountry "GBR"]
[SourceTitle "playchess.com"]
[Source "ChessBase"]
[SourceQuality "1"]
[TimeControl "40/6000+30:20/3000+30:900+30"]

1. e4 {[%emt 0:00:00]} c5 {[%emt 0:00:00]} 2. Nf3 {[%emt 0:00:00]} e6 {[%emt 0:00:00]} 3. d4 {[%emt 0:00:00]} cxd4 {[%emt 0:00:00]} 4. Nxd4 {[%emt 0:00:00]} a6 {[%emt 0:00:00]} 5. Bd3 {[%emt 0:00:48]} Bc5 {[%emt 0:00:00]} 6. Nb3 {[%emt 0:00:05]} Be7 {[%emt 0:00:00]} 7. Qg4 {[%emt 0:00:16]} g6 {[%emt 0:00:08]} 8. Qe2 {[%emt 0:00:15]} d6 {[%emt 0:00:05]} 9. O-O {[%emt 0:00:18]} Nd7 {[%emt 0:00:47]} 10. c4 {[%emt 0:05:05]} b6 {[%emt 0:00:11]} 11. Be3 {[%emt 0:02:54]} Bb7 {[%emt 0:00:54]} 12. Nc3 {[%emt 0:02:11]} Ngf6 {[%emt 0:07:10]} 13. Rac1 {[%emt 0:14:44]} O-O {[%emt 0:00:18]} 14. f3 {[%emt 0:01:29]} Qc7 {[%emt 0:00:37]} 15. Qf2 {[%emt 0:03:00]} Rfe8 {[%emt 0:03:42]} 16. Rfd1 {[%emt 0:03:09]} Rac8 {[%emt 0:03:05]} 17. Bf1 {[%emt 0:01:30]} h5 {[%emt 0:00:19]} 18. Nd4 {[%emt 0:23:09]} Qb8 {[%emt 0:01:39]} 19. b3 {[%emt 0:18:28]} Bd8 {[%emt 0:03:50]} 20. Nde2 {[%emt 0:07:46]} Nh7 {[%emt 0:05:35]} 21. Nf4 {[%emt 0:03:00]} Bc7 {[%emt 0:01:31]} 22. g3 {[%emt 0:01:04]} Ba8 {[%emt 0:01:33]} 23. Bh3 {[%emt 0:02:27]} Rcd8 {[%emt 0:01:14]} 24. Nd3 {[%emt 0:08:39]} Nhf6 {[%emt 0:07:53]} 25. Nb4 {[%emt 0:00:58]} Bb7 {[%emt 0:01:08]} 26. Kh1 {[%emt 0:03:01]} Nh7 {[%emt 0:01:35]} 27. Rd2 {[%emt 0:00:44]} Nc5 {[%emt 0:00:18]} 28. Rcd1 {[%emt 0:00:40]} g5 {[%emt 0:01:18]} 29. Bg2 {[%emt 0:01:21]} Rf8 {[%emt 0:00:07]} 30. Nd3 {[%emt 0:00:59]} Nd7 {[%emt 0:02:37]} 31. h4 {[%emt 0:02:31]} d5 {[%emt 0:01:58]} 32. cxd5 {[%emt 0:01:12]} Bxg3 {[%emt 0:00:08]} 33. Qg1 {[%emt 0:00:18]} exd5 {[%emt 0:01:18]} 34. exd5 {[%emt 0:02:12]} Bxh4 {[%emt 0:01:09]} 35. Nf2 {[%emt 0:01:13]} f5 {[%emt 0:00:37]} 36. Nh3 {[%emt 0:00:38]} Rf7 {[%emt 0:06:20]} 37. Bf1 {[%emt 0:00:10]} g4 {[%emt 0:00:08]} 38. Nf4 {[%emt 0:00:47]} Ne5 {[%emt 0:00:04]} 39. Be2 {[%emt 0:01:05]} Ng5 {[%emt 0:00:56]} 40. Rf1 {[%emt 0:01:16]} Re8 {[%emt 0:08:36]} 41. Ng2 {[%emt 0:08:57]} Nh3 {[%emt 0:01:31]} 42. Qh2 {[%emt 0:00:39]} Bf6 {[%emt 0:03:29]} 43. fxg4 {[%emt 0:16:13]} fxg4 {[%emt 0:00:09]} 44. Ne4 {[%emt 0:01:20]} Qd8 {[%emt 0:01:46]} 45. Bd4 {[%emt 0:05:11]} Bg7 {[%emt 0:00:45]} 46. Rxf7 {[%emt 0:00:32]} Nxf7 {[%emt 0:00:05]} 47. Bxg7 {[%emt 0:00:29]} Kxg7 {[%emt 0:01:04]} 48. Ng3 {[%emt 0:01:58]} Qg5 {[%emt 0:00:10]} 49. Rd4 {[%emt 0:01:35]} Bxd5 {[%emt 0:02:51]} 50. Nxh5+ {[%emt 0:00:51]} Qxh5 {[%emt 0:00:19]} 0-1

[Event "FIDE Chesscom Grand Swiss 2019"]
[Site "Douglas-Isle of Man"]
[Date "2019.10.12"]
[Round "3.25"]
[White "Sadhwani, Raunak"]
[Black "Ganguly, Surya Shekhar"]
[Result "1/2-1/2"]
[ECO "A29"]
[WhiteElo "2479"]
[BlackElo "2658"]
[Annotator "RC"]
[PlyCount "56"]
[EventDate "2019.10.10"]
[EventType "swiss"]
[EventCountry "GBR"]
[SourceTitle "playchess.com"]
[Source "ChessBase"]
[SourceQuality "1"]
[TimeControl "40/6000+30:20/3000+30:900+30"]

1. c4 {[%emt 0:00:00]} Nf6 {[%emt 0:00:00]} 2. Nc3 {[%emt 0:00:00]} e5 {[%emt 0:01:22]} 3. Nf3 {[%emt 0:00:00]} Nc6 {[%emt 0:00:09]} 4. g3 {[%emt 0:00:00]} d5 {[%emt 0:00:34]} 5. cxd5 {[%emt 0:00:00]} Nxd5 {[%emt 0:00:05]} 6. Bg2 {[%emt 0:00:04]} Nb6 {[%emt 0:00:07]} 7. O-O {[%emt 0:00:07]} Be7 {[%emt 0:00:04]} 8. a3 {[%emt 0:00:06]} O-O {[%emt 0:00:45]} 9. b4 {[%emt 0:00:05]} Be6 {[%emt 0:00:37]} 10. Rb1 {[%emt 0:00:11]} f6 {[%emt 0:01:07]} 11. d3 {[%emt 0:00:06]} Nd4 {[%emt 0:01:51]} 12. Nd2 {[%emt 0:01:40]} c6 {[%emt 0:02:02]} 13. Nde4 {[%emt 0:02:18]} Bf7 {[%emt 0:11:31]} 14. Nc5 {[%emt 0:01:59]} Qc7 {[%emt 0:05:48]} 15. e3 {[%emt 0:00:30]} Ne6 {[%emt 0:04:18]} 16. N3e4 {[%emt 0:00:07]} Nxc5 {[%emt 0:11:17]} 17. bxc5 {[%emt 0:04:22]} Nd7 {[%emt 0:00:30]} 18. d4 {[%emt 0:04:19]} b6 {[%emt 0:02:14]} 19. Qc2 {[%emt 0:03:54]} bxc5 {[%emt 0:05:54]} 20. dxe5 {[%emt 0:00:05]} Nxe5 {[%emt 0:04:35]} 21. Nxc5 {[%emt 0:00:12]} Bc4 {[%emt 0:02:09]} 22. Rb7 {[%emt 0:16:46]} Qd6 {[%emt 0:03:31]} 23. Ne4 {[%emt 0:04:52]} Qe6 {[%emt 0:01:04]} 24. f4 {[%emt 0:04:12]} Bd3 {[%emt 0:08:00]} 25. Qa4 {[%emt 0:04:08]} Bb5 {[%emt 0:03:36]} 26. Qc2 {[%emt 0:01:15]} Bd3 {[%emt 0:01:16]} 27. Qa4 {[%emt 0:00:09]} Bb5 {[%emt 0:10:37]} 28. Qc2 {[%emt 0:00:15]} Bd3 {[%emt 0:00:05]} 1/2-1/2

[Event "FIDE Chesscom Grand Swiss 2019"]
[Site "Douglas-Isle of Man"]
[Date "2019.10.12"]
[Round "3.29"]
[White "Saduakassova, Dinara"]
[Black "Alekseev, Evgeny"]
[Result "1/2-1/2"]
[ECO "A40"]
[WhiteElo "2481"]
[BlackElo "2629"]
[Annotator "RC"]
[PlyCount "60"]
[EventDate "2019.10.10"]
[EventType "swiss"]
[EventCountry "GBR"]
[SourceTitle "playchess.com"]
[Source "ChessBase"]
[SourceQuality "1"]
[TimeControl "40/6000+30:20/3000+30:900+30"]

1. d4 {[%emt 0:00:00]} e6 {[%emt 0:03:02]} 2. c4 {[%emt 0:00:00]} b6 {[%emt 0:01:46]} 3. e4 {[%emt 0:00:00]} Bb7 {[%emt 0:00:17]} 4. Bd3 {[%emt 0:00:40]} Nc6 {[%emt 0:04:06]} 5. Ne2 {[%emt 0:02:04]} Nb4 {[%emt 0:01:17]} 6. Nbc3 {[%emt 0:00:07]} Nxd3+ {[%emt 0:00:49]} 7. Qxd3 {[%emt 0:00:04]} g6 {[%emt 0:07:04]} 8. Be3 {[%emt 0:09:26]} Bg7 {[%emt 0:04:10]} 9. d5 {[%emt 0:02:23]} Nf6 {[%emt 0:05:51]} 10. O-O-O {[%emt 0:09:16]} Ng4 {[%emt 0:09:46]} 11. f4 {[%emt 0:05:08]} Nxe3 {[%emt 0:10:01]} 12. Qxe3 {[%emt 0:00:12]} exd5 {[%emt 0:15:34]} 13. exd5+ {[%emt 0:12:26]} Qe7 {[%emt 0:04:49]} 14. Qxe7+ {[%emt 0:04:08]} Kxe7 {[%emt 0:00:01]} 15. Nd4 {[%emt 0:01:12]} Rhc8 {[%emt 0:03:38]} 16. Kc2 {[%emt 0:07:02]} Kf8 {[%emt 0:04:23]} 17. Nf3 {[%emt 0:07:01]} a6 {[%emt 0:07:59]} 18. Rhe1 {[%emt 0:05:56]} Re8 {[%emt 0:05:32]} 19. b3 {[%emt 0:06:17]} Rxe1 {[%emt 0:01:52]} 20. Rxe1 {[%emt 0:00:45]} Re8 {[%emt 0:00:30]} 21. Rxe8+ {[%emt 0:02:38]} Kxe8 {[%emt 0:00:02]} 22. Kd3 {[%emt 0:00:48]} Ke7 {[%emt 0:00:20]} 23. Nd4 {[%emt 0:02:32]} f5 {[%emt 0:10:32]} 24. b4 {[%emt 0:03:04]} Kf6 {[%emt 0:06:18]} 25. c5 {[%emt 0:07:04]} Bf8 {[%emt 0:00:02]} 26. Nb3 {[%emt 0:00:18]} Ke7 {[%emt 0:01:39]} 27. g3 {[%emt 0:07:18]} Kd8 {[%emt 0:00:09]} 28. a3 {[%emt 0:02:51]} Kc8 {[%emt 0:01:28]} 29. Kc4 {[%emt 0:03:52]} Kd8 {[%emt 0:00:01]} 30. Kd3 {[%emt 0:00:53]} Kc8 {[%emt 0:00:14] Ke4} 1/2-1/2